Cogmind - Beta 15 @@@ ROGUE MODE // 2025.09.25 @ 18:56:01 Player: bluemonk Result: Destroyed by Autobeam Turret with Autobeam Performance ------------- Evolutions (0) 0 Regions Visited (3) 600 Robots Destroyed (10) 50 Value Destroyed (247) 247 Prototype IDs (0) 0 Alien Tech Used (0) 0 Bonus (0) 0 TOTAL SCORE: 897 Bonus ------- None Cogmind --------- Core Integrity 0/250 Matter 288/300 Energy 393/400 System Corruption 0% Temperature Cool (12) Movement Rolling (95) Location -10/Subcaves Parts ------- > --- POWER (1) -------- Subdweller Power Source > --- PROPULSION (2) --- Wheel Subdweller Monowheel > --- UTILITY (2) ------ Small Storage Unit Large Battery > --- WEAPON (2) ------- Subdweller Laser Subdweller Machine Gun > --- INVENTORY (8) ---- Light Ion Engine Scrap Shield Subdweller Laser Subdweller Laser Peak State ------------ > --- POWER ------------ Subdweller Power Source > --- PROPULSION ------- Aluminum Leg Aluminum Leg > --- UTILITY ---------- Small Storage Unit Improved Terrain Scanner > --- WEAPON ----------- Riot Gun Subdweller Laser > --- INVENTORY -------- Light Ion Engine Subdweller Power Source Wheel Wheel Subdweller Optics Targeting Computer Small Laser Small Laser [Rating: 14] Favorites ----------- Power Ion Engine Engine Ion Engine Propulsion Aluminum Leg Leg Aluminum Leg Wheel Subdweller Monowheel Utility Small Storage Unit Device Improved Terrain Scanner Storage Small Storage Unit Weapon Small Laser Energy Gun Small Laser Ballistic Gun Subdweller Machine Gun Build | -11 -10 -10 -10 ------- Run | Yrd Mat Min Sub Slots Evolved . | . . . . Power . | . . . . Propulsion . | . . . . Utility . | . . . . Weapon . | . . . . Parts Attached 18 | 7 . . 11 Power 4 | 1 . . 3 Engine 4 | 1 . . 3 Core . | . . . . Reactor . | . . . . Propulsion 4 | 2 . . 2 Treads . | . . . . Leg 2 | 2 . . . Wheel 2 | . . . 2 Hover . | . . . . Flight . | . . . . Utility 4 | 2 . . 2 Device 2 | 1 . . 1 Storage 2 | 1 . . 1 Processor . | . . . . Hackware . | . . . . Protection . | . . . . Artifact . | . . . . Weapon 6 | 2 . . 4 Energy Gun 5 | 2 . . 3 Energy Cannon . | . . . . Ballistic Gun 1 | . . . 1 Ballistic Cannon . | . . . . Launcher . | . . . . Special Weapon . | . . . . Impact Weapon . | . . . . Slashing Weapon . | . . . . Piercing Weapon . | . . . . Special Melee Weapon . | . . . . Unidentified Prototypes . | . . . . Parts Lost 7 | . . . 7 Power 2 | . . . 2 Propulsion 2 | . . . 2 Utility 2 | . . . 2 Weapon 1 | . . . 1 Highest Loss Streak 4 | . . . 4 To Critical Strikes . | . . . . Average Backups 7 | 3 7 8 7 Power 1 | 1 2 2 1 Propulsion 2 | 2 2 2 1 Utility 1 | . 1 2 1 Weapon 1 | . 1 2 1 Tool/Special . | . . . . Unused Backups 9 | . 2 . 7 Power 1 | . . . 1 Propulsion 3 | . 2 . 1 Utility 2 | . . . 2 Weapon 3 | . . . 3 Tool/Special . | . . . . Average Slot Usage (%) 99 | . 100 100 98 Engine 13 | . 14 14 13 Leg 26 | . 28 28 26 Device 13 | . 14 14 12 Storage 14 | . 14 14 14 Energy Gun 26 | . 28 28 24 Ballistic Gun 1 | . . . 3 Peak Build Rating 14 | 9 9 9 14 Average Rating 9 | 6 9 9 10 On Entrance 6 | . 9 9 9 Naked Turns . | . . . . Heaviest Build 21 | 13 13 13 21 Greatest Support 30 | 20 20 20 30 Greatest Overweight (x) . | . . . . Average Overweight (x) . | . . . . Largest Inventory Capacity 8 | 8 8 8 8 Average Capacity 7 | 7 8 8 8 Most Carried 8 | 7 8 8 8 Average Carried 7 | 3 7 8 7 Final Capacity 8 | 8 8 8 8 Final Carried 8 | 7 8 8 5 Class Distribution -------------------- 100% | Mutant Dominant Class ---------------- Mutant | -10/Materials Mutant | -10/Mines Mutant | -10/Subcaves Resources | -11 -10 -10 -10 ----------- Run | Yrd Mat Min Sub Matter Collected 375 | 258 . . 117 Remotely . | . . . . Salvage Created 296 | 17 . . 279 Parts 22 | 3 . . 19 Haulers Intercepted . | . . . . Recyclers Shooed . | . . . . Parts Field Recycled . | . . . . Retrieved Matter . | . . . . Parts Self-Destructed 11 | . . . 11 Prevented . | . . . . Kills | -11 -10 -10 -10 ------- Run | Yrd Mat Min Sub Combat Hostiles Destroyed 9 | . . . 9 Guns 9 | . . . 9 Classes Destroyed 3 | 1 . . 2 Tunneler 1 | 1 . . . Swarmer 4 | . . . 4 Subdweller 5 | . . . 5 Best Kill Streak 4 | 1 . . 4 Combat Bots Only 4 | . . . 4 Max Kills in Single Turn 1 | 1 . . 1 Gunslinging . | . . . . Exploded . | . . . . Melee . | . . . . Uniques/NPCs Destroyed . | . . . . Combat | -11 -10 -10 -10 -------- Run | Yrd Mat Min Sub Hostile Shots Fired 114 | . . . 114 Missed 43 | . . . 43 Hits 71 | . . . 71 Projectile 71 | . . . 71 Critical Strikes 1 | . . . 1 Damage Taken 925 | . . . 925 Core 251 | . . . 251 Absorbed by Shields . | . . . . Core Remaining (%) 100 | 100 . . . Volleys Fired 49 | 1 . . 48 Largest 2 | 2 . . 2 Hottest 110 | 80 . . 110 Shots Fired 98 | 2 . . 96 Gun 98 | 2 . . 96 Cannon . | . . . . Launcher . | . . . . Special . | . . . . Kinetic 17 | . . . 17 Thermal 78 | 2 . . 76 Explosive . | . . . . Electromagnetic 3 | . . . 3 Robot Hit Streak 11 | 1 . . 11 Robot Miss Streak 4 | 1 . . 4 Penetration Max . | . . . . Secondary Targets 1 | . . . 1 Max Gunslinging Chain 1 | . . . 1 Shots Hit Robots 67 | 1 . . 66 Core Hits 17 | 1 . . 16 Critical Kills . | . . . . Critical Parts Destroyed 1 | . . . 1 Critical Strikes 1 | . . . 1 Destroy 1 | . . . 1 Melee Attacks . | . . . . Impact . | . . . . Slashing . | . . . . Piercing . | . . . . Sneak Attacks . | . . . . Combat Hostiles . | . . . . Follow-up Attacks . | . . . . Damage Inflicted 976 | 12 . . 964 Guns 976 | 12 . . 964 Cannons . | . . . . Explosions . | . . . . Melee . | . . . . Ramming . | . . . . Kinetic 244 | . . . 244 Thermal 710 | 12 . . 698 Explosive . | . . . . Electromagnetic 22 | . . . 22 Impact . | . . . . Slashing . | . . . . Piercing . | . . . . Highest Corruption . | . . . . Average Corruption . | . . . . Corruption Purged . | . . . . Corruption Blocked . | . . . . Overload Shots . | . . . . Overflow Damage . | . . . . Projectiles . | . . . . Explosions . | . . . . Melee . | . . . . Knockbacks . | . . . . Impact . | . . . . Kinetic . | . . . . Secondary . | . . . . Self-Inflicted Damage . | . . . . Shots . | . . . . Rammed . | . . . . Targets Rammed . | . . . . Kicked . | . . . . Crushed . | . . . . Highest Temperature 18 | 18 . . 2 Average Temperature 8 | 12 . . 2 Received Heat Transfer 222 | . . . 222 Siege Activations . | . . . . Martial Activations . | . . . . Shielding Activations . | . . . . Robots Disrupted . | . . . . Combat Hostiles . | . . . . Robots Corrupted . | . . . . Combat Hostiles . | . . . . Parts Fried . | . . . . Impact Corruptions . | . . . . Robots Melted . | . . . . Combat Hostiles . | . . . . Parts Melted 1 | . . . 1 Heat Transferred 1300 | 25 . . 1275 Parts Sabotaged . | . . . . Parts Stolen . | . . . . Parts Stripped . | . . . . Power Chain Reactions . | . . . . Alert | -11 -10 -10 -10 ------- Run | Yrd Mat Min Sub Maximum Alert Level . | . . . . Low Security (%) 100 | 100 100 100 . Level 1 . | . . . . Level 2 . | . . . . Level 3 . | . . . . Level 4 . | . . . . Level 5 . | . . . . High Security . | . . . . Max Security . | . . . . Peak Influence 5 | 5 5 . . Initial . | . . . . Average . | . . . . Influence Increases 150 | 5 5 . 140 Destroy 0b10 Robot/C 80 | . . . 80 Destroy 0b10 Robot/NC 5 | 5 . . . Successful Hack 5 | . 5 . . Lose Combat Pursuer 60 | . . . 60 Influence Decreases 66 | 5 5 . 56 Time Decay 26 | 5 5 . 16 Lost Part 40 | . . . 40 Squads Dispatched . | . . . . Investigation . | . . . . Extermination . | . . . . Reinforcement . | . . . . Assault . | . . . . Garrison . | . . . . Intercept . | . . . . Searches Triggered . | . . . . Construction Impeded . | . . . . Haulers Reinforced . | . . . . Active Scanning Responses . | . . . . Cargo Convoy Interrupts . | . . . . Stealth | -11 -10 -10 -10 --------- Run | Yrd Mat Min Sub Distress Signals . | . . . . Communications Jammed . | . . . . Distress Signals . | . . . . Times Spotted 11 | . . . 11 Peak Tracking Total 6 | . . . 6 Tactical Retreats 2 | . . . 2 Traps | -11 -10 -10 -10 ------- Run | Yrd Mat Min Sub Traps Triggered . | . . . . Indirectly . | . . . . Trap Hack Attempts . | . . . . Triggered . | . . . . Disarmed . | . . . . Reprogrammed . | . . . . Reused . | . . . . Traps Extracted . | . . . . Installed . | . . . . Triggered . | . . . . Machines | -11 -10 -10 -10 ---------- Run | Yrd Mat Min Sub Machines Disabled . | . . . . Max in Single Turn . | . . . . Machines Repaired . | . . . . Machines Dismantled . | . . . . Machines Sabotaged . | . . . . Overloaded Fab Kills . | . . . . Hacking | -11 -10 -10 -10 --------- Run | Yrd Mat Min Sub Machines Accessed 2 | . 2 . . Terminals 2 | . 2 . . Fabricators . | . . . . Repair Stations . | . . . . Recycling Units . | . . . . Scanalyzers . | . . . . Garrison Access . | . . . . Total Hacks 7 | . 7 . . Successful 4 | . 4 . . Failed 3 | . 3 . . Catastrophic . | . . . . Database Lockouts . | . . . . Manual . | . . . . Terminals 7 | . 7 . . Fabricators . | . . . . Repair Stations . | . . . . Recycling Units . | . . . . Scanalyzers . | . . . . Garrison Access . | . . . . Terminal Hacks 4 | . 4 . . Alert Level 2 | . 2 . . Transport Status 1 | . 1 . . Reinforcement Status 1 | . 1 . . Fabricator Hacks . | . . . . Repair Station Hacks . | . . . . Recycling Unit Hacks . | . . . . Scanalyzer . | . . . . Garrison Access Hacks . | . . . . Unauthorized Hacks . | . . . . Terminals . | . . . . Fabricators . | . . . . Repair Stations . | . . . . Recycling Units . | . . . . Scanalyzers . | . . . . Garrison Access . | . . . . Data Cores Recovered . | . . . . Used . | . . . . Hacking Detections 2 | . 2 . . Full Trace Events . | . . . . Feedback Events . | . . . . Feedback Blocked . | . . . . Robot Schematics Acquired . | . . . . Robots Built . | . . . . Authchips . | . . . . Time . | . . . . Total Robot Build Rating . | . . . . Part Schematics Acquired . | . . . . Parts Built . | . . . . Authchips . | . . . . Time . | . . . . Total Part Build Rating . | . . . . Parts Repaired . | . . . . Time . | . . . . Parts Recycled . | . . . . Recycled Matter . | . . . . Retrieved Matter . | . . . . Retrieved Components . | . . . . Parts Scanalyzed . | . . . . Part Schematics Acquired . | . . . . Parts Damaged . | . . . . Bothacking | -11 -10 -10 -10 ------------ Run | Yrd Mat Min Sub Used RIF Installer . | . . . . Robots Hacked . | . . . . Non-combat . | . . . . Combat . | . . . . Robot Hacks Applied . | . . . . Relay Couplers Released . | . . . . Fabnet Peak Effective % . | . . . . Robots Rewired . | . . . . Allies Hacked . | . . . . Hacks Repelled . | . . . . Allies | -11 -10 -10 -10 -------- Run | Yrd Mat Min Sub Total Allies . | . . . . Largest Group . | . . . . Highest-Rated Group . | . . . . Highest-Rated Ally . | . . . . Total Orders . | . . . . Ally Attacks . | . . . . Total Damage . | . . . . Kills . | . . . . Allies Corrupted . | . . . . Allies Melted . | . . . . Intel | -11 -10 -10 -10 ------- Run | Yrd Mat Min Sub Active Infowar (turns) 899 | 39 104 300 456 Optics 75 | . . . 75 Terrain 824 | 39 104 300 381 Robot Analysis Total . | . . . . Derelict Logs Recovered 2 | . . 1 1 Drone Launches . | . . . . Drone Recoveries . | . . . . Exploration | -11 -10 -10 -10 ------------- Run | Yrd Mat Min Sub Turns Passed 989 | 91 104 300 494 Spaces Moved 580 | 56 84 177 263 Core 3 | 3 . . . Treads . | . . . . Legs 566 | 53 84 177 252 Wheels 11 | . . . 11 Hover . | . . . . Flight . | . . . . Fastest Speed 50 | 50 120 120 95 Average Speed 119 | 116 120 120 118 Slowest Speed 120 | 120 120 120 120 Overloaded Moves . | . . . . Propulsion Burnouts . | . . . . Robots Hopped . | . . . . Potential Cave-ins . | . . . . Cave-ins Triggered . | . . . . Exploration Rate (%) 17 | 5 18 35 13 Regions Visited 3 Branch Regions 2 Pre-discovered Areas 2 | . . 1 1 Known Exits Taken . | . . . . Unknown Exits Taken 3 | 1 1 1 . Scrap Searched 1 | . . . 1 Spaces Dug . | . . . . Terrain Destroyed . | . . . . Melee . | . . . . Projectile . | . . . . AOE . | . . . . Terrain Rammed . | . . . . Walls Destroyed . | . . . . Machines Disabled . | . . . . Actions | -11 -10 -10 -10 --------- Run | Yrd Mat Min Sub Total 780 | 76 88 264 352 Wait 103 | 6 . 88 9 Move 577 | 55 83 176 263 Hop . | . . . . Pick Up 21 | 7 3 . 11 Fast Attach 8 | 7 . . 1 Attach 6 | . . . 6 Detach . | . . . . Swap 4 | . . . 4 Drop 12 | . 2 . 10 Fire 49 | 1 . . 48 Melee . | . . . . Ram . | . . . . Kick . | . . . . Crush . | . . . . Escape Stasis . | . . . . Rewire . | . . . . Trap . | . . . . Miscellaneous . | . . . . Route ------- -11/Scrapyard -10/Materials -10/Mines (discovered 2 exits: [*Mat] / [*Sub]) -10/Subcaves (discovered 2 exits: Mat / [*Rec]) History --------- Turn | Location | Event 2 | -11/Scrapyard | Discovered new exit (range 16) 92 | -11/Scrapyard | Entered Materials 180 | -10/Materials | Discovered new exit (range 9) 196 | -10/Materials | Entered Mines 205 | -10/Mines | Met a Derelict bent on vengeance 214 | -10/Mines | Discovered new exit (range 10) 269 | -10/Mines | YI-UF0 nonchalantly dropped a Grenade Launcher on the ground 304 | -10/Mines | Build established: Mutant 321 | -10/Mines | Learned location of Zion (-6) 487 | -10/Mines | Discovered new exit (range 6) 496 | -10/Mines | Entered Subcaves 567 | -10/Subcaves | Core integrity fell below 50% 576 | -10/Subcaves | Identified exit to Materials 612 | -10/Subcaves | Met a Zionite searching for "candidates" 649 | -10/Subcaves | A swath of the cavern ceiling suddenly collapsed 691 | -10/Subcaves | A swath of the cavern ceiling suddenly collapsed 942 | -10/Subcaves | Discovered new exit (range 21) 950 | -10/Subcaves | Core integrity fell below 20% 990 | -10/Subcaves | Destroyed by Autobeam Turret with Autobeam Last Messages --------------- Destroyed Flight Unit. Flight Unit fries itself beyond repair. Aluminum Leg destroyed. Lgt. Assault Rifle fries itself beyond repair. Sub. Power Source destroyed. Lgt. Ion Engine fries itself beyond repair. Destroyed Flight Unit. S-10 Pest destroyed. S-10 Pest suffers critical hit (Destroy). Destroyed Flight Unit. S-10 Pest destroyed. Lgt. Ion Engine fries itself beyond repair. Acquired 11 matter. Subatomizers dissect the Sub. Laser. Acquired Sub. Laser. Lgt. Ion Engine fries itself beyond repair. Acquired 18 matter. Dropped Sml. Laser. Extracted 44 energy. Acquired Lrg. Battery. Map ----- +----------------------------------------------------+ | ???????????????????????????????????## ##?##"##"#? | | ??????????????????????????????????## #####""" #? | | ???????????????????????????????????## #" " " ## | | ????????????????????????????????????###"####"# # | | ??????????????????????????????????????###??### #?? | | ??????????????????????????????#??????????????#"### | | ?????????????????????????????????????????????#"""# | | ?????????????????????????????????#??#????????## #" | | ??????????????????????????????????#??????????#"# # | | ?????????????????????????????????#??????#????###"" | | ????????????????????????????????#??#??????##### # | | ?????????????????????????#?????????????#?## | | ??????????????????????????#?????#????????# | | ???????????????????????#?#???????#??#??### &=### | | ??????????????????#??#?????#??????????## &%&### | | ???????????????????????????#???#????### & # | | ?????????????????#?#?????????????????# ## | | ????????????????????????#######??#???# ###### | | ????????????#??????#????#"&[ "#???##?# ###??#? | | ???????????????????????## ##[%####?#?# !%= #???? ? | | ?????????????#????????#?# #####????## ! ""#?????? | | ????????????????????????## <###????## ##???? ? | | ????????????????????????## ## #?#?## ##?????? | | ?????????????????????#?##<=[* ##### #??????? | | ??????????????########## #### ##?????"? | | ???????"" %% @ ## #### ##???????" | | ??????< # % #### ##????????? | | ???????"" ?## ##??# #????#????? | | ???????" ###### ???## #???# # ## #?????????? | | ???????? ????????? ? ???# #??###### ##???? ????? | | ????????????????? ?????? #?????## #??????????? | | ???????????????????? ???#######??# ####??? ??#? | | ???????????????????? ????????????# #?????????? | | ????????????????????????#????????# #????????#? | | ????????????????? ??????????????### ##?????"???? | | ???????????????????????????????????#####?????????? | | ???????????????????????????#?????????#??????#????? | | ?????????????????????????#????????##?????????????? | | ????????????????????????????#????????????????????? | | ?????????????????????????????????????????????????? | | ?????????????????????????????????????????????????? | | ?????????????????????????????????#???????????????? | | ?????????????????????????????????????????????????? | | ???????????????????????????????????#??????#??????? | | ?????????????????????????????????????????????????? | | ?????????????????????????????????????????????????? | | ?????????????????????????????????????????????????? | | ?????????????????????????????????????????????????? | | ?????????????????????????????????????#???????????? | | ?????????????????????????????????????????????????? | +----------------------------------------------------+ Best States ------------- Heat Dissipation 25 Energy Generation 15 Energy Capacity 400 Matter Stores 300 Matter Capacity 300 Sight Range 21 Terrain Scan Range 16 Terrain Scan Density 10 Evasion (%) 55 Item Schematics ----------------- None Robot Schematics ------------------ None Fabricated ------------ Nothing Repaired ---------- Nothing Alien Tech Used ----------------- None Achievements -------------- None Challenges ------------ None Game ------ Seed SuspensionHardlightPlatform Manual? 0 Play Time 00:11:29 Cumulative 40.8 hours Start 2025.09.25 @ 18:44:09 End 2025.09.25 @ 18:56:01 Sessions 1 Manual Loads 0 Difficulty Rogue Special Mode None Game No. 66 Rogue 66 Adventurer 0 Explorer 0 Win Type - Total 0 Types 0/0/0/0/0/0/0/0/0/0 Lore% 20 Gallery% 32 Achievement% 27 Wizard Run 0 Options --------- Layout 1 ASCII 0 Keyboard 0 Movement Numpad Keybinds 0 Fullscreen 1 Font 24/Smallcaps Map View 50x35 Zoom Use 0% Tactical HUD 0 Map Filters NONE Filters NONE Steam 1 RUN: 459ef13d-8fc0-48e2-bf8b-f70ee891aa92